[Event "83rd Georgian Championship 2024"]
[Site "Tbilisi"]
[Date "2024.02.06"]
[Round "8.4"]
[White "Tsomaia, Nikoloz"]
[Black "Pantsulaia, Levan"]
[Result "1-0"]
[ECO "B41"]
[WhiteElo "2231"]
[BlackElo "2561"]
[Annotator "TA"]
[PlyCount "79"]
[EventDate "2024.01.29"]
[EventType "tourn"]
[EventCountry "GEO"]
[SourceTitle "playchess.com"]
[Source "ChessBase"]
[SourceQuality "1"]
[TimeControl "5400+30"]

{[%evp 13,79,13,62,49,47,48,48,61,71,64,71,32,61,62,79,80,162,154,158,108,103,89,127,76,74,63,104,43,87,0,264,264,257,224,263,276,257,257,284,271,275,231,256,262,236,242,303,307,291,296,420,411,420,396,450,439,552,548,606,622,597,624,626,587,1230,1171,4806,2479]} 1. e4 {[%emt 0:00:03]} c5 {[%emt 0:00:12]} 2. Nf3 {[%emt 0:00:09]} e6 {[%emt 0:00:32]} 3. d4 {[%emt 0:00:23]} cxd4 {[%emt 0:00:07]} 4. Nxd4 {[%emt 0:00:04]} a6 {[%emt 0:00:50]} 5. c4 {[%emt 0:00:05]} Nf6 {[%emt 0:00:59]} 6. Nc3 {[%emt 0:00:06]} Qc7 {[%emt 0:00:05]} 7. a3 {[%emt 0:00:15]} b6 {[%emt 0:00:58]} (7... Nxe4 $11 {feels stronger.} 8. Nxe4 Qe5) 8. Be2 {[%emt 0:00:22]} Bb7 {[%emt 0:00:08]} 9. f3 {[%emt 0:00:05]} d6 {[%emt 0:00:35]} 10. Be3 {[%emt 0:00:10] White is slightly better.} Nbd7 {[%emt 0:00:04]} 11. Rc1 {[%emt 0:00:28]} Be7 {[%emt 0:00:07]} 12. g4 {[%emt 0:00:07]} g6 {[%emt 0:14:59]} 13. h4 {[%emt 0:07:43]} e5 {[%emt 0:03:01]} 14. Nc2 {[%emt 0:01:58]} a5 {[%emt 0:09:04]} (14... Qd8 $16 {might work better.}) 15. Nb5 $18 {[%emt 0:16:41]} Qc6 {[%emt 0:01:57]} 16. Bf2 {[%emt 0:04:06] White is more active.} (16. Bh6 $142) 16... Nc5 $16 {[%emt 0:07:19]} 17. Ne3 {[%emt 0:08:45]} a4 {[%emt 0:01:46]} 18. h5 {[%emt 0:13:03]} ({Better is} 18. g5 Nh5 19. Nd5) 18... Qd7 {[%emt 0:06:50]} 19. Bh4 {[%emt 0:05:49]} Rd8 {[%emt 0:07:56]} 20. Bf1 {[%emt 0:03:02]} (20. Kf1 $16) 20... Bc6 {[%emt 0:07:47]} 21. Bh3 {[%emt 0:05:45]} ({White should play} 21. Nc3 $16) 21... Nfxe4 $2 {[%emt 0:03:41][%mdl 8192] [#] Black is on the road to losing.} 22. g5 $1 $18 {[%emt 0:05:17][%mdl 512]} Qb7 {[%emt 0:00:15]} 23. fxe4 {[%emt 0:02:02] Nd5 would now be deadly.} Bxb5 {[%emt 0:02:43]} 24. cxb5 {[%emt 0:02:38]} Qxe4 {[%emt 0:00:11] [#]} 25. Ke2 $1 {[%emt 0:00:11]} Nb3 {[%emt 0:00:04]} (25... Qxh4 $2 26. Bd7+ Rxd7 27. Rxh4 $18) 26. Bg2 {[%emt 0:02:17]} Nd4+ {[%emt 0:09:28]} 27. Kd2 {[%emt 0:01:29]} Qf4 {[%emt 0:00:14]} 28. Qg4 {[%emt 0:00:56] Strongly threatening Qxf4.} (28. Qxa4 $2 {perishes.} Nf3+ (28... gxh5 $2 {is the wrong capture.} 29. b3 $18) 29. Bxf3 Qxa4 $17) 28... Nb3+ {[%emt 0:00:34] [#]} 29. Ke2 $1 {[%emt 0:01:02] aiming for Bc6+.} Qxg4+ {[%emt 0:00:44]} 30. Nxg4 {[%emt 0:00:05][%cal Be3g4,Bg4h6,Bh6f7,Bf7e5][%mdl 32]} Nxc1+ {[%emt 0:00:51]} 31. Rxc1 {[%emt 0:00:05]} gxh5 {[%emt 0:00:06]} (31... d5 $142 32. Nxe5 O-O) 32. Nh6 {[%emt 0:01:27]} d5 {[%emt 0:01:52]} 33. Bf3 {[%emt 0:01:36]} Bc5 {[%emt 0:01:57]} 34. Bxh5 {[%emt 0:00:09] White is clearly winning.} Rf8 {[%emt 0:00:25]} 35. Nxf7 {[%emt 0:01:08]} Ra8 {[%emt 0:01:58]} 36. Nxe5+ {[%emt 0:01:33]} Kd8 {[%emt 0:01:52]} 37. g6+ {[%emt 0:00:59][%cal Bg5g6,Bg6g7][%mdl 32]} Kc7 {[%emt 0:00:05]} 38. Bg3 {[%emt 0:02:19]} h6 {[%emt 0:03:23]} 39. g7 {[%emt 0:04:38] White wants to mate with Ng6+.} Rf5 {[%emt 0:01:16]} 40. Bg4 {[%emt 0:01:20] Weighted Error Value: White=0.13 (very precise) /Black=0.39.  Loses game:     	---       	Black=1      Mistake:       	White=4     	Black=2      Inaccurate:     	White=1     	Black=5      OK:         	White=13    	Black=13     Best:        	White=2     	---        Strong:       	White=1     	---        Brilliant:      	White=1     	---} 1-0

[Event "83rd Georgian Championship 2024"]
[Site "Tbilisi"]
[Date "2024.02.07"]
[Round "9.1"]
[White "Quparadze, Giga"]
[Black "Kacharava, Nikolozi"]
[Result "0-1"]
[ECO "C76"]
[WhiteElo "2491"]
[BlackElo "2523"]
[Annotator "TA"]
[PlyCount "110"]
[EventDate "2024.01.29"]
[EventType "tourn"]
[EventCountry "GEO"]
[SourceTitle "playchess.com"]
[Source "ChessBase"]
[SourceQuality "1"]
[TimeControl "5400+30"]

{[%evp 14,110,33,33,26,25,26,25,31,32,45,60,50,29,27,0,0,0,0,-47,-7,-61,0,0,0,-100,-87,-77,-42,-203,-199,-218,-208,-231,-231,-272,-259,-262,-255,-276,-277,-292,-289,-359,-340,-363,-330,-349,-320,-310,-245,-662,-658,-799,-542,-964,-946,-1088,-818,-785,-775,-1040,-1024,-1025,-553,-560,-521,-543,-531,-560,-542,-562,-572,-606,-620,-680,-496,-727,-737,-1093,-1107,-1094,-1047,-1394,-1384,-2738,-10823,-6289,-4137,-4137,-4137,-29986,-29987,-29987,-29988,-29989,-29990,-29995,-29992]} 1. e4 {[%emt 0:00:02]} e5 {[%emt 0:00:25]} 2. Nf3 {[%emt 0:00:05]} Nc6 {[%emt 0:00:10]} 3. Bb5 {[%emt 0:00:05]} a6 {[%emt 0:01:08]} 4. Ba4 {[%emt 0:00:05]} d6 {[%emt 0:00:24]} 5. O-O {[%emt 0:00:10]} Bd7 {[%emt 0:00:30]} 6. c3 {[%emt 0:00:10]} g6 {[%emt 0:00:45]} 7. d4 {[%emt 0:00:08]} Bg7 {[%emt 0:00:19]} 8. h3 {[%emt 0:01:12]} Nf6 {[%emt 0:01:29]} 9. Re1 {[%emt 0:00:07]} O-O {[%emt 0:00:39]} 10. Bc2 {[%emt 0:00:15]} Nh5 {[%emt 0:03:24] White has an edge.} 11. Be3 {[%emt 0:00:23]} Qe8 {[%emt 0:00:54]} 12. Nbd2 {[%emt 0:00:30]} Kh8 {[%emt 0:00:32]} 13. Nf1 {[%emt 0:01:17]} f5 {[%emt 0:00:55]} 14. exf5 {[%emt 0:01:42]} gxf5 {[%emt 0:00:24]} 15. dxe5 {[%emt 0:00:10]} dxe5 {[%emt 0:01:31]} 16. Bc5 {[%emt 0:02:57]} (16. Ng3 $11 {is more appropriate.} Nxg3 17. fxg3) 16... Rf6 {[%emt 0:12:28]} 17. Ne3 {[%emt 0:02:06]} (17. Nh4 $11) 17... Be6 {[%emt 0:09:19]} (17... Nf4 $1 $15 18. Nd5 Nxd5 19. Qxd5 e4) 18. Ng5 $11 {[%emt 0:04:24] Threatens to win with Nxe6.} Rd8 {[%emt 0:05:38]} 19. Qe2 {[%emt 0:00:24]} (19. Qb1 $1 $11 {was the only way to keep the balance.} e4 20. Nxe6 Qxe6 21. Rd1) 19... Nf4 {[%emt 0:04:42]} 20. Qf3 {[%emt 0:00:46]} Bc8 {[%emt 0:01:56]} 21. Rad1 $2 {[%emt 0:00:35] [#] This move loses the game for White.} (21. g3 $1 $15 Nd3 22. Bxd3 Rxd3 23. Qe2) 21... h6 $1 $19 {[%emt 0:05:02]} 22. Rxd8 {[%emt 0:03:34]} Qxd8 {[%emt 0:03:10]} (22... Nxd8 23. Ne4 Rc6 (23... fxe4 24. Qxe4 Qg8 25. Ng4 $17) 24. h4) 23. Rd1 {[%emt 0:06:46]} Qe8 {[%emt 0:03:03]} 24. Ne4 {[%emt 0:01:10]} fxe4 {[%emt 0:01:33]} 25. Qxe4 {[%emt 0:00:06] [#]} Qg8 {[%emt 0:03:32] Dodges Qh7+} 26. Bb3 {[%emt 0:02:46]} Be6 {[%emt 0:04:20]} 27. Ng4 {[%emt 0:00:18]} Rg6 {[%emt 0:03:33]} 28. Rd7 {[%emt 0:00:55]} h5 {[%emt 0:07:13]} 29. Ne3 {[%emt 0:01:15]} Bxb3 {[%emt 0:00:56]} (29... Nxh3+ $2 30. Kf1 Qe8 31. Rxc7 $19) 30. axb3 {[%emt 0:00:24]} Qxb3 {[%emt 0:01:44]} (30... Nxh3+ 31. Kf1 Nf4 32. g3 $17) 31. Rxc7 {[%emt 0:01:47]} Qxb2 {[%emt 0:04:53]} (31... Nxh3+ 32. Kf1 Nf4 33. g3 Qb5+ 34. c4 Qxc5 35. gxf4 $17) 32. Rc8+ $2 {[%emt 0:00:05]} (32. Qf5 Qb3 (32... Qxc3 33. Bf8 $15) 33. Kh1) 32... Kh7 {[%emt 0:00:03]} 33. Qc4 {[%emt 0:00:03]} Ne6 {[%emt 0:01:43]} 34. Qh4 {[%emt 0:07:00]} Nf4 {[%emt 0:02:44]} ({Stronger than} 34... Nxc5 35. Qxh5+ Bh6 36. Rc7+ Rg7 37. Qf5+ Kh8 38. Qf8+ Kh7 39. Qf5+ Kh8 40. Qf8+ Kh7 41. Qf5+ $11) 35. Rc7 {[%emt 0:00:43]} Qa1+ {[%emt 0:08:18]} 36. Kh2 {[%emt 0:00:19]} Qa5 {[%emt 0:00:22]} 37. Rxb7 {[%emt 0:01:56]} Qxc5 {[%emt 0:00:43]} 38. g3 {[%emt 0:00:05]} Qf8 {[%emt 0:02:33]} 39. gxf4 {[%emt 0:06:44]} Qxf4+ {[%emt 0:00:10]} 40. Qxf4 {[%emt 0:00:05]} exf4 {[%emt 0:00:02]} 41. Nf5 {[%emt 0:00:04]} Ne5 {[%emt 0:00:50]} 42. Nh4 {[%emt 0:00:55] Prevents Nf3+.} Rg5 {[%emt 0:01:49]} 43. Rc7 {[%emt 0:00:30]} Nd3 {[%emt 0:00:42]} 44. c4 {[%emt 0:00:09]} a5 {[%emt 0:01:04]} 45. Ra7 {[%emt 0:02:37]} (45. Nf3 $142 Rc5 46. Rd7) 45... Nxf2 {[%emt 0:00:51]} 46. Nf3 {[%emt 0:00:06]} Rg3 {[%emt 0:00:48]} 47. Nd4 {[%emt 0:00:17]} Ne4 {[%emt 0:01:14] ...f3 is the strong threat.} (47... Rxh3+ $2 48. Kg2 Rd3 49. Ne6 $19) 48. Nf5 {[%emt 0:03:52]} Rg5 {[%emt 0:00:24]} 49. Nd4 {[%emt 0:00:04]} Nd2 {[%emt 0:00:51][%cal Of4f3]} 50. h4 {[%emt 0:00:36]} Rg3 {[%emt 0:01:01] White must now prevent ...Rg4.} 51. Ne2 {[%emt 0:01:27]} Rg4 {[%emt 0:00:52] ( -> ...Nf1+)} 52. Rf7 {[%emt 0:04:25]} Kg6 {[%emt 0:00:30] Black mates.} 53. Rd7 {[%emt 0:00:18]} Nf1+ {[%emt 0:00:39]} 54. Kh3 {[%emt 0:01:06]} f3 {[%emt 0:00:22][%csl LRc4,LRe2]} 55. Rd6+ {[%emt 0:00:04]} Kh7 {[%emt 0:00:21] Weighted Error Value: White=0.85/Black=0.42.  Loses game:     	White=1     	---        Mistake:       	White=4     	Black=1      Inaccurate:     	White=2     	Black=2      OK:         	White=5     	Black=12     Best:        	White=1     	Black=1      Strong:       	---       	Black=1} 0-1

[Event "83rd Georgian Championship 2024"]
[Site "Tbilisi"]
[Date "2024.02.07"]
[Round "9.3"]
[White "Gagunashvili, Merab"]
[Black "Tsomaia, Nikoloz"]
[Result "1-0"]
[ECO "E97"]
[WhiteElo "2562"]
[BlackElo "2231"]
[Annotator "TA"]
[PlyCount "61"]
[EventDate "2024.01.29"]
[EventType "tourn"]
[EventCountry "GEO"]
[SourceTitle "playchess.com"]
[Source "ChessBase"]
[SourceQuality "1"]
[TimeControl "5400+30"]

{[%evp 20,61,28,2,10,23,38,25,18,22,18,-17,-11,-22,-22,-50,-45,-48,-39,-124,-139,-260,-95,-97,65,17,10,27,155,191,491,441,564,516,411,510,477,496,1596,1540,1716,1128,1078,1041]} 1. d4 {[%emt 0:00:03]} Nf6 {[%emt 0:00:19]} 2. c4 {[%emt 0:00:05]} g6 {[%emt 0:00:04]} 3. Nc3 {[%emt 0:01:17]} Bg7 {[%emt 0:00:05]} 4. e4 {[%emt 0:00:15]} d6 {[%emt 0:00:04]} 5. Nf3 {[%emt 0:00:07]} O-O {[%emt 0:00:06]} 6. Be2 {[%emt 0:00:03]} e5 {[%emt 0:00:14]} 7. O-O {[%emt 0:00:07]} Nc6 {[%emt 0:00:03]} 8. d5 {[%emt 0:00:15]} Ne7 {[%emt 0:00:06]} 9. b4 {[%emt 0:00:04]} Nh5 {[%emt 0:02:22]} 10. c5 {[%emt 0:04:02]} f5 {[%emt 0:21:42]} 11. Ng5 {[%emt 0:14:03]} Nf4 {[%emt 0:02:55]} 12. Bc4 $1 {[%emt 0:00:36]} h6 {[%emt 0:01:04]} 13. Ne6 {[%emt 0:08:37]} Bxe6 {[%emt 0:03:15] White has an edge.} 14. dxe6 {[%emt 0:00:07]} fxe4 {[%emt 0:00:17]} 15. cxd6 {[%emt 0:02:35]} (15. Nxe4 $2 d5 16. Qc2 (16. Bxf4 $2 Rxf4 17. Re1 dxc4 $19) 16... Nxe6 $19 (16... dxe4 17. Bxf4 exf4 18. Rad1 $11)) 15... cxd6 {[%emt 0:00:22] Strongly threatening ...Rc8.} 16. Nd5 {[%emt 0:01:51]} Rc8 {[%emt 0:30:10]} (16... Nxe6 $2 17. Qg4 Rf5 18. Nxe7+ (18. Qxe4 Kh7 $11) 18... Qxe7 19. Qxg6 $18) 17. Bxf4 {[%emt 0:02:54]} exf4 {[%emt 0:02:06]} 18. Rc1 {[%emt 0:00:12]} Rf5 $1 {[%emt 0:02:35]} 19. Qb3 {[%emt 0:18:08]} (19. Nxe7+ $15 Qxe7 20. Bb3) 19... Kh7 $17 {[%emt 0:02:21] White must now prevent ...f3.} 20. Rcd1 {[%emt 0:17:55]} (20. Nxe7 $17 Qxe7 21. Bd5 Rxc1 22. Rxc1) 20... Nc6 $2 {[%emt 0:12:56]} (20... f3 $19 21. g3 b5 22. Bxb5 Nxd5 23. Rxd5 Rc3) 21. Qb1 {[%emt 0:02:19]} Ne5 $2 {[%emt 0:01:36]} (21... Nd4 $1 $17 22. Rxd4 Bxd4) 22. Bb5 {[%emt 0:07:52]} (22. Bb3 $14) 22... Nf3+ $11 {[%emt 0:05:32]} 23. gxf3 {[%emt 0:00:52]} (23. Kh1 $2 Qh4 24. h3 Ng5 $19) 23... Qh4 {[%emt 0:03:27]} (23... Qg5+ $11 {remains equal.} 24. Kh1 Rxd5 25. Rxd5 Qxd5) 24. Qxe4 $16 {[%emt 0:02:19]} (24. fxe4 $2 Qg4+ 25. Kh1 Qf3+ 26. Kg1 Rg5#) 24... Be5 $2 {[%emt 0:03:12]} (24... Rcf8 25. Ne3 (25. e7 Qxh2+ 26. Kxh2 Rh5+ 27. Kg1 Rg5+ 28. Kh1 Rh5+ 29. Kg2 Rg5+ 30. Kh3 Rh5+ 31. Kg2 Rg5+ 32. Kh2 Rh5+ 33. Kg2 $11) 25... Qg5+ 26. Ng2 Rxb5) 25. Ne3 {[%emt 0:02:26]} Rg5+ {[%emt 0:01:57] [#]} 26. Kh1 $1 {[%emt 0:01:47]} Qh3 {[%emt 0:00:44]} 27. Ng4 {[%emt 0:02:41]} (27. Qxb7+ Bg7 28. Ng4 (28. Qxc8 $2 Qxf3+) 28... Rc7 $18) 27... Rxg4 {[%emt 0:00:13] [#] White is clearly winning.} 28. Rg1 {[%emt 0:02:19] Prevents Qg2+. Active counter play!} (28. fxg4 f3 29. Qxb7+ Kg8 30. Qxc8+ Kh7 31. Qd7+ Kh8 32. Qe8+ (32. Qxa7 $2 Qxh2#) 32... Kg7 33. Qe7+ Kh8 34. Qe8+ (34. Qxa7 $2 Qxh2#) 34... Kh7 35. Qe7+ (35. Qd7+ Kh8 $11) 35... Kg8 36. Qf7+ (36. Qxa7 $2 Qxh2#) 36... Kh8 37. Qe8+ $11 (37. Qxa7 $2 Qxh2#)) (28. Qxb7+ Rc7 29. Qxc7+ Bg7 30. fxg4 Qf3+ 31. Kg1 Qxg4+ 32. Kh1 Qf3+ 33. Kg1 Qg4+ 34. Kh1 Qf3+ 35. Kg1 Qg4+ $11) 28... d5 {[%emt 0:02:25]} (28... Rxg1+ $142 29. Rxg1 Qxe6 30. Qxb7+ Bg7) 29. Qxd5 $18 {[%emt 0:01:16]} (29. Qxe5 $2 {is a self mate.} Qxf3+) 29... Rxg1+ {[%emt 0:02:11]} 30. Kxg1 {[%emt 0:02:07]} Bg7 {[%emt 0:00:36]} 31. e7 {[%emt 0:00:15] Weighted Error Value: White=0.22 (precise) /Black=0.59.  Missed win:     	---       	Black=1      Mistake:       	White=3     	Black=4      Inaccurate:     	White=2     	---        OK:         	White=4     	Black=6      Best:        	White=4     	---        Strong:       	White=2     	Black=1} 1-0

[Event "83rd Georgian Championship 2024"]
[Site "Tbilisi"]
[Date "2024.02.07"]
[Round "9.4"]
[White "kiladze, Luka"]
[Black "Mchedlishvili, Mikheil"]
[Result "1/2-1/2"]
[ECO "D00"]
[WhiteElo "2179"]
[BlackElo "2569"]
[Annotator "TA"]
[PlyCount "67"]
[EventDate "2024.01.29"]
[EventType "tourn"]
[EventCountry "GEO"]
[SourceTitle "playchess.com"]
[Source "ChessBase"]
[SourceQuality "1"]
[TimeControl "5400+30"]

{[%evp 9,67,-4,2,0,0,0,6,0,0,-34,-27,-32,-28,-44,-27,-90,-101,-121,-116,-122,-133,-114,-115,-106,-114,-114,-127,-114,-116,-127,-117,-122,-115,-119,-125,-131,-72,-72,-40,-92,-69,-115,-83,-104,-83,-83,-80,-83,-50,-87,-87,-66,-63,-55,-6,-49,0,-65,0,-69]} 1. d4 {[%emt 0:00:05]} Nf6 {[%emt 0:00:16]} 2. Nc3 {[%emt 0:00:07]} d5 {[%emt 0:00:26]} 3. Bf4 {[%emt 0:00:06]} c5 {[%emt 0:00:47]} 4. e4 {[%emt 0:00:07]} Nxe4 {[%emt 0:01:14]} 5. Nxe4 {[%emt 0:00:07]} dxe4 {[%emt 0:00:10]} 6. dxc5 {[%emt 0:00:07] Black should prevent Qxd8+.} Qxd1+ {[%emt 0:02:00]} 7. Rxd1 {[%emt 0:00:11] Bxb8 is the strong threat.} Nc6 {[%emt 0:01:17] Black is weak on the dark squares} 8. Bb5 {[%emt 0:02:19]} f6 {[%emt 0:03:43]} 9. Ne2 {[%emt 0:02:46]} e5 $1 {[%emt 0:01:30]} 10. Be3 {[%emt 0:00:06]} Be6 {[%emt 0:01:07][%cal Oe8f7,Bc8e6,Be6g8,Bg8c4][%mdl 32] Repels Bc4} 11. Nc3 {[%emt 0:05:54]} f5 {[%emt 0:01:16]} 12. Nd5 {[%emt 0:03:33]} (12. g3 $11) 12... O-O-O $17 {[%emt 0:04:45]} 13. Bc4 {[%emt 0:11:37][%cal Od5b6] And now Nb6+! would win.} Bg8 {[%emt 0:02:37]} 14. g3 {[%emt 0:05:35]} Nb4 {[%emt 0:17:27]} 15. Nxb4 {[%emt 0:01:41]} Rxd1+ {[%emt 0:00:06]} (15... Bxc4 16. Rxd8+ Kxd8 17. b3 $15) 16. Kxd1 {[%emt 0:00:05]} Bxc4 {[%emt 0:00:03]} 17. b3 {[%emt 0:01:53]} Be6 {[%emt 0:01:59] Hoping for ...a5.} 18. c4 {[%emt 0:02:36] [#]} g5 $1 {[%emt 0:12:21][%mdl 512]} 19. Bxg5 {[%emt 0:03:10]} Bxc5 {[%emt 0:00:32]} 20. Nd5 {[%emt 0:01:37]} Bxd5 {[%emt 0:03:13]} (20... Bxf2 21. Rf1 Bc5 22. Ne7+ Bxe7 23. Bxe7 $16) 21. cxd5 {[%emt 0:00:14][%mdl 4096] Endgame. KRB-KRB} Kd7 {[%emt 0:01:39]} ({Much worse is} 21... Bxf2 $6 22. Rf1 e3 (22... Rg8 23. Bf6 $11) 23. Ke2 $11) 22. Ke2 {[%emt 0:01:37]} Bd4 {[%emt 0:01:05]} (22... Kd6 $142 {[%cal Oh8g8]} 23. b4 Bxb4) 23. Rc1 {[%emt 0:06:12]} Kd6 {[%emt 0:13:49][%cal Oa7a5]} 24. a4 {[%emt 0:12:06]} ({White should try} 24. Be3 $15) 24... h5 {[%emt 0:00:43]} ({Don't play} 24... Kxd5 25. Rc7) 25. Be3 {[%emt 0:01:16] [#]} (25. h4 $15) 25... h4 $1 {[%emt 0:07:16]} (25... Kxd5 26. Rc7 $11) 26. Rc4 {[%emt 0:03:54]} hxg3 {[%emt 0:02:49]} 27. hxg3 {[%emt 0:00:06]} Kxd5 {[%emt 0:04:34]} 28. Rc7 {[%emt 0:00:09]} Rb8 {[%emt 0:00:31]} 29. Rf7 {[%emt 0:06:18]} Ke6 {[%emt 0:00:16]} 30. Rh7 {[%emt 0:00:22]} a5 {[%emt 0:03:13]} 31. Rh6+ {[%emt 0:00:40]} Kf7 {[%emt 0:00:33]} (31... Ke7 $15) 32. Rh7+ {[%emt 0:00:22]} Ke6 {[%emt 0:02:44]} 33. Rh6+ {[%emt 0:00:40]} Kf7 {[%emt 0:03:49]} 34. Rh7+ {[%emt 0:00:16] Weighted Error Value: White=0.14 (very precise) /Black=0.13 (very precise) .  Mistake:       	White=3     	Black=2      Inaccurate:     	White=3     	Black=2      OK:         	White=10    	Black=15     Best:        	White=5     	Black=2      Strong:       	---       	Black=2} 1/2-1/2

[Event "83rd Georgian Championship 2024"]
[Site "Tbilisi"]
[Date "2024.02.07"]
[Round "9.5"]
[White "Jobava, Baadur"]
[Black "Paichadze, Luka"]
[Result "1-0"]
[ECO "A35"]
[WhiteElo "2591"]
[BlackElo "2503"]
[Annotator "TA"]
[PlyCount "45"]
[EventDate "2024.01.29"]
[EventType "tourn"]
[EventCountry "GEO"]
[SourceTitle "playchess.com"]
[Source "ChessBase"]
[SourceQuality "1"]
[TimeControl "5400+30"]

{[%evp 18,45,25,23,56,37,50,42,53,36,42,43,47,41,260,289,297,294,288,289,1134,1051,1968,1963,1547,1545,29986,29987,29994,29995]} 1. e4 {[%emt 0:00:09]} c6 {[%emt 0:00:06]} 2. d4 {[%emt 0:00:10]} d5 {[%emt 0:00:28]} 3. exd5 {[%emt 0:00:09]} cxd5 {[%emt 0:00:05]} 4. c4 {[%emt 0:00:04]} Nf6 {[%emt 0:00:27][%cal Bg8f6,Bf6d5,Bd5c3][%mdl 32]} 5. Nc3 {[%emt 0:00:06]} g6 {[%emt 0:01:57]} 6. cxd5 {[%emt 0:00:11]} Nxd5 {[%emt 0:01:14]} 7. Bc4 {[%emt 0:00:06]} Nxc3 {[%emt 0:03:15]} 8. Qb3 {[%emt 0:00:07]} e6 {[%emt 0:08:06]} 9. bxc3 {[%emt 0:00:06]} Nc6 {[%emt 0:00:08]} 10. Nf3 {[%emt 0:00:11]} Na5 {[%emt 0:05:35]} 11. Bb5+ {[%emt 0:00:21]} Bd7 {[%emt 0:00:04]} 12. Qa4 {[%emt 0:01:13] Bxd7+ is the strong threat.} Nc6 $1 {[%emt 0:00:21] [#] White is slightly better.} 13. d5 $1 {[%emt 0:00:48]} exd5 {[%emt 0:00:48]} 14. O-O {[%emt 0:00:06][%cal Bh1f1,Bf1e1,Be1e7][%mdl 32] Hoping for Re1+.} Be7 {[%emt 0:05:29]} 15. Bh6 {[%emt 0:00:37] Strongly threatening Rfe1.} a6 $2 {[%emt 0:08:41] [#]} (15... Qa5 $1 $14) 16. Bxc6 $1 $18 {[%emt 0:00:07]} Bxc6 {[%emt 0:00:05]} 17. Qd4 {[%emt 0:00:14]} f6 {[%emt 0:00:44][%cal Bf7f6,Bf6g5][%mdl 32]} 18. Rfe1 {[%emt 0:00:28]} Kf7 {[%emt 0:01:05] [#]} (18... Rf8 19. Bxf8 Kxf8) 19. Ng5+ $1 {[%emt 0:00:15][%mdl 512]} Kg8 {[%emt 0:01:21]} (19... Ke8 20. Qxf6) 20. Qe3 {[%emt 0:00:33][%cal Re3e6]} Qd7 {[%emt 0:03:04]} 21. Qxe7 {[%emt 0:00:07]} Qxe7 {[%emt 0:02:09]} 22. Rxe7 {[%emt 0:00:06]} fxg5 {[%emt 0:00:02]} 23. Rae1 {[%emt 0:00:08] Black got outplayed after the opening.   Weighted Error Value: White=0.03 (flawless) /Black=0.73.  Loses game:     	---       	Black=1      Mistake:       	---       	Black=1      Inaccurate:     	---       	Black=1      OK:         	White=4     	Black=2      Best:        	White=2     	Black=2      Strong:       	White=1     	Black=1} 1-0